bitfinex/quotes_SOLUSD_20250918
["timestamp","ask_amount","ask_price","bid_price","bid_amount"]
[1758177733383,1e-08,243.76,243.75,32.26789408]
[1758177733583,1e-08,243.76,243.75,32.55221722]
[1758177735389,0.67,243.85,243.8,0.28432314]
[1758177735591,0.67,243.87,243.85,26.0]
[1758177735779,0.67,243.86,243.85,26.0]
[1758177736674,0.67,243.86,243.85,30.10088168]
[1758177740804,0.77,243.89,243.85,30.10088168]
[1758177740987,0.67,243.88,243.85,30.10088168]
[1758177741187,0.1,243.89,243.85,30.10088168]
[1758177741412,0.67,243.88,243.87,26.0]
[1758177741712,0.1,243.89,243.87,26.0]
[1758177742017,3.00916979,243.88,243.83,84.90109871]
[1758177742213,0.67,243.87,243.83,84.90109871]
[1758177742517,0.67,243.86,243.85,26.0]
[1758177743203,0.67,243.86,243.82,4.10133753]
[1758177743415,0.67,243.85,243.82,4.10133753]
[1758177743999,0.67,243.84,243.83,26.0]
[1758177745493,2.33916979,243.86,243.83,30.10111398]
[1758177745802,0.67,243.85,243.83,30.10111398]
[1758177746006,0.67,243.84,243.83,26.0]
[1758177746201,0.67,243.84,243.8,80.8]
[1758177746417,0.67,243.83,243.81,26.0]
[1758177746794,1.49443667,243.85,243.81,26.0]
[1758177747093,0.67,243.84,243.81,26.0]
[1758177747293,1.49443667,243.85,243.82,4.10138626]
[1758177747503,0.67,243.83,243.82,4.10138626]
[1758177748509,0.67,243.83,243.81,26.0]
[1758177748703,0.67,243.82,243.81,26.0]
[1758177748914,0.67,243.84,243.81,30.10145517]
[1758177749091,0.67,243.83,243.81,30.10145517]
[1758177750003,4.10041936,243.88,243.81,30.10145517]
[1758177750205,0.67,243.82,243.8,26.0]
[1758177750417,0.67,243.81,243.8,26.0]
[1758177752196,2.19443667,243.84,243.8,30.10163391]
[1758177752398,0.7,243.83,243.8,30.10163391]
[1758177756529,1.49443667,243.85,243.81,26.0]
[1758177756822,0.7,243.83,243.81,26.0]
[1758177757200,1.49443667,243.85,243.81,26.0]
[1758177757401,0.7,243.84,243.81,26.0]
[1758177757605,0.7,243.83,243.81,26.0]
[1758177758817,2.19443667,243.85,243.81,26.0]
[1758177759014,0.7,243.84,243.81,30.10152431]
[1758177759216,0.7,243.83,243.81,30.10152431]
[1758177759698,0.7,243.84,243.81,30.10152431]
[1758177759898,0.7,243.83,243.81,30.10152431]
[1758177760109,0.76,243.88,243.82,0.71]
[1758177760298,2.25443667,243.88,243.82,0.71]
[1758177760713,2.25443667,243.88,243.81,30.10152431]
[1758177760912,0.7,243.87,243.81,30.10152431]
[1758177761114,0.7,243.86,243.81,30.10152431]
[1758177761314,0.7,243.85,243.81,30.10152431]
[1758177761502,2.19443667,243.84,243.81,26.0]
[1758177761701,0.7,243.83,243.8,26.0]
[1758177761902,0.7,243.82,243.8,30.10167206]
[1758177763014,1.49443667,243.83,243.8,30.10167206]
[1758177763318,0.7,243.82,243.8,30.10167206]
[1758177763518,0.7,243.81,243.8,26.0]
[1758177763736,2.19443667,243.81,243.8,26.0]
[1758177764422,2.19443667,243.81,243.79,0.03]
[1758177764627,1.49443667,243.8,243.79,0.03]
[1758177765003,2.19443667,243.8,243.79,0.03]
[1758177766814,0.7,243.8,243.79,0.03]
[1758177767009,2.19443667,243.8,243.79,0.03]
[1758177768630,0.7,243.83,243.79,0.03]
[1758177769017,1.49443667,243.84,243.79,0.03]
[1758177769215,0.7,243.83,243.79,0.03]
[1758177769427,2.19443667,243.84,243.79,0.74]
[1758177769935,1.49443667,243.84,243.79,4.13174082]
[1758177770129,2.19443667,243.84,243.79,4.13174082]
[1758177770629,0.7,243.83,243.79,4.13174082]
[1758177770815,2.19443667,243.83,243.79,4.13174082]
[1758177772431,0.06,243.8,243.79,4.84174082]
[1758177773106,0.06,243.8,243.79,4.13174082]
[1758177773634,0.06,243.8,243.79,18.43733483]
[1758177775135,0.06,243.8,243.79,18.72165797]
[1758177775431,0.06,243.8,243.79,17.72733483]
[1758177777738,0.06,243.8,243.79,18.43733483]
[1758177778621,0.06,243.8,243.79,18.72165797]
[1758177780746,0.06,243.8,243.79,18.43733483]
[1758177780940,0.06,243.8,243.79,17.72733483]
[1758177781151,0.06,243.8,243.79,18.40733483]
[1758177781526,0.06,243.8,243.79,17.72733483]
[1758177782445,0.74,243.8,243.79,30.13174082]
[1758177782827,0.06,243.8,243.79,30.13174082]
[1758177784146,0.06,243.8,243.79,43.72733483]
[1758177784446,0.06,243.8,243.79,44.38733483]
[1758177784838,0.06,243.8,243.79,43.72733483]
[1758177788348,0.06,243.8,243.79,30.13174082]
[1758177788550,0.74,243.8,243.79,30.13174082]
[1758177789430,0.06,243.8,243.79,30.13174082]
[1758177792350,0.06,243.8,243.79,34.13174082]
[1758177794851,0.74,243.8,243.79,34.13174082]
[1758177797756,0.06,243.8,243.79,34.13174082]
[1758177799649,0.06,243.8,243.79,47.72733483]
[1758177800546,0.06,243.8,243.79,34.13174082]
[1758177800733,0.74,243.8,243.79,34.13174082]
[1758177801049,0.74,243.8,243.79,30.03]
[1758177801974,2.23443667,243.8,243.79,4.03]
[1758177804955,0.74,243.8,243.79,4.03]
[1758177806062,0.06,243.8,243.79,4.03]
[1758177812272,0.77,243.8,243.79,4.03]
[1758177812575,3.10628217,243.8,243.79,4.03]
[1758177812773,0.06,243.8,243.79,4.03]
[1758177814082,0.06,243.8,243.79,4.69]
[1758177814960,0.06,243.8,243.79,4.03]
[1758177816877,0.77,243.8,243.79,4.03]
[1758177817868,3.10628217,243.8,243.79,4.03]
[1758177818182,0.77,243.8,243.79,4.03]
[1758177818686,3.10628217,243.8,243.79,4.03]
[1758177825597,3.10628217,243.8,243.79,0.03]
[1758177826316,0.77,243.8,243.79,0.03]
[1758177826590,3.10628217,243.8,243.79,0.03]
[1758177831701,0.77,243.8,243.79,0.03]
[1758177831899,3.10628217,243.8,243.79,0.03]
[1758177832102,0.77,243.8,243.79,0.03]
[1758177832404,2.39628217,243.8,243.79,0.03]
[1758177832601,0.06,243.8,243.79,0.03]
[1758177832825,0.06,243.8,243.79,0.69]
[1758177834508,0.06,243.8,243.79,4.79189097]
[1758177837005,0.06,243.8,243.79,18.38748498]
[1758177837197,0.06,243.8,243.79,4.79189097]
[1758177839707,0.06,243.8,243.79,4.13189097]
[1758177840504,0.06,243.8,243.79,8.82189097]
[1758177840691,0.06,243.8,243.79,8.13189097]
[1758177845895,0.06,243.8,243.79,8.81189097]
[1758177848525,0.06,243.8,243.79,22.40748498]
[1758177849508,0.06,243.83,243.82,39.59559401]
[1758177849699,0.06,243.83,243.82,39.87991715]
[1758177850004,0.06,243.83,243.82,40.55991715]
[1758177850522,0.06,243.83,243.82,44.66130341]
[1758177859219,1e-08,243.83,243.82,44.66130341]
[1758177859412,1e-08,243.83,243.82,125.46130341]
[1758177860034,1e-08,243.83,243.82,124.78130341]
[1758177860806,0.72000001,243.83,243.82,98.49698027]
[1758177861110,0.72000001,243.83,243.82,84.90138626]
[1758177861728,0.72000001,243.83,243.82,4.10138626]
[1758177862030,0.72000001,243.83,243.82,30.10138626]
[1758177862228,0.72000001,243.83,243.82,4.10138626]
[1758177862535,0.72000001,243.83,243.82,30.10138626]
[1758177863746,1e-08,243.83,243.82,30.10138626]
[1758177864712,0.72000001,243.83,243.82,30.10138626]
[1758177865212,2.33628217,243.83,243.79,0.03]
[1758177865407,2.33628217,243.8,243.79,0.03]
[1758177865607,14.41315204,243.85,243.79,0.03]
[1758177865808,5.59755861,243.8,243.79,0.03]
[1758177867234,6.08755861,243.8,243.79,0.03]
[1758177871931,1.49583589,243.8,243.79,0.03]
[1758177873241,4.59161446,243.81,243.79,0.03]
[1758177873534,1.98583589,243.8,243.79,0.03]
[1758177875520,0.55,243.83,243.79,0.03]
[1758177875834,1.49583589,243.82,243.79,0.03]
[1758177876213,0.06,243.83,243.8,0.7]
[1758177876419,0.06,243.83,243.81,0.7]
[1758177879347,0.06,243.83,243.79,26.73]
[1758177879930,1.55583589,243.83,243.79,26.03]
[1758177880135,1.49583589,243.82,243.79,26.03]
[1758177880332,1.49583589,243.82,243.79,26.73]
[1758177880637,0.06,243.83,243.8,0.7]
[1758177881037,0.06,243.83,243.81,0.7]
[1758177883432,0.06,243.83,243.79,26.03]
[1758177883619,0.06,243.83,243.82,0.7]
[1758177886953,0.06,243.83,243.82,26.7]
[1758177891372,0.06,243.83,243.82,0.7]
[1758177892352,0.06,243.83,243.82,26.73]
[1758177893452,0.06,243.83,243.82,0.73]
[1758177893653,0.06,243.83,243.82,26.73]
[1758177899158,0.06,243.83,243.82,26.03]
[1758177899743,0.06,243.83,243.82,0.03]
[1758177899948,0.06,243.83,243.82,0.69]
[1758177901057,0.06,243.83,243.82,26.69]
[1758177903252,0.06,243.83,243.82,0.69]
[1758177903759,0.06,243.83,243.82,26.69]
[1758177903954,0.06,243.83,243.82,40.28559401]
[1758177904144,0.06,243.83,243.82,40.56991715]
[1758177906155,0.06,243.83,243.82,42.21070719]
[1758177907467,1e-08,243.85,243.84,39.59559401]
[1758177907969,1e-08,243.85,243.84,40.27559401]
[1758177908149,1e-08,243.85,243.84,41.91618216]
[1758177908552,1e-08,243.86,243.85,4.38520482]
[1758177908775,1e-08,243.86,243.85,85.86520482]
[1758177909267,1e-08,243.86,243.85,18.66079883]
[1758177909775,1e-08,243.86,243.85,20.3013197]
[1758177914771,1e-08,243.86,243.85,101.1013197]
[1758177918272,1e-08,243.89,243.88,39.87991715]
[1758177918684,1e-08,243.89,243.88,40.55991715]
[1758177918980,1e-08,243.89,243.88,42.2002362]
[1758177920190,1e-08,243.89,243.88,46.30061343]
[1758177920483,1e-08,243.89,243.88,58.62265901]
[1758177920774,1e-08,243.91,243.89,0.28432314]
[1758177920957,1e-08,243.91,243.9,14.55991715]
[1758177921974,1e-08,243.91,243.9,18.65995815]
[1758177922175,1e-08,243.91,243.9,22.01263793]
[1758177922381,1e-08,243.91,243.9,23.65282245]
[1758177923072,1e-08,243.91,243.9,20.30014267]
[1758177924764,1e-08,243.91,243.9,101.10014267]
[1758177925485,1e-08,243.91,243.9,156.30544387]
[1758177927280,1e-08,243.91,243.9,168.62544387]
[1758177927494,1e-08,243.91,243.9,156.30544387]
[1758177934882,0.06,243.96,243.94,39.59559401]
[1758177935089,0.06,243.96,243.95,0.28432314]
[1758177935382,0.06,243.96,243.95,69.05963721]
[1758177935591,0.06,243.96,243.95,70.69948552]
[1758177936587,0.1,243.99,243.98,39.87991715]
[1758177936889,0.1,243.99,243.98,43.97861376]
[1758177937569,0.59,243.99,243.98,43.97861376]
[1758177938696,0.1,243.99,243.98,43.97861376]
[1758177938877,0.1,243.99,243.98,44.69861376]
[1758177939076,0.1,243.99,243.98,99.15833382]
[1758177942693,0.1,243.99,243.98,99.87833382]
[1758177943376,0.1,243.99,243.98,99.15833382]
[1758177944094,0.1,243.99,243.98,99.87833382]
[1758177944595,0.1,243.99,243.98,99.15833382]
[1758177945395,0.1,243.99,243.98,179.95833382]
[1758177945897,0.1,243.99,243.98,180.67833382]
[1758177946201,0.16,243.99,243.98,180.67833382]
[1758177946410,0.16,243.99,243.98,179.95833382]
[1758177946987,0.16,243.99,243.98,180.67833382]
[1758177947987,0.16,243.99,243.98,182.31798048]
[1758177949687,0.16,243.99,243.98,179.95833382]
[1758177950082,0.16,243.99,243.98,179.81617225]
[1758177950499,0.16,243.99,243.98,179.67401068]
[1758177950686,2.98200021,243.99,243.98,55.17972006]
[1758177954206,5.31400042,243.99,243.98,55.17972006]
[1758177956099,26.65,243.99,243.98,55.17972006]
[1758177956301,28.98200021,243.99,243.98,55.17972006]
[1758177957986,31.31400042,243.99,243.98,55.17972006]
[1758177960893,0.65,243.99,243.98,55.17972006]
[1758177961204,0.16,243.99,243.98,55.17972006]
[1758177961793,0.16,243.99,243.98,55.83972006]
[1758177969322,0.16,243.99,243.98,69.43531407]
[1758177972625,0.16,243.99,243.98,150.51963721]
[1758177972810,0.16,243.99,243.98,152.15928386]
[1758177974801,0.16,243.99,243.98,156.25798047]
[1758177975521,0.06,244.02,244.01,39.87991715]
[1758177975926,0.06,244.02,244.01,40.56991715]
[1758177976329,0.06,244.02,244.01,44.66810984]
[1758177977239,0.06,244.02,244.01,30.09819269]
[1758177977410,0.06,244.02,243.99,4.0984562]
[1758177977823,0.06,244.02,243.99,4.7884562]
[1758177978013,0.06,244.02,243.99,4.0984562]
[1758177978214,0.06,244.02,243.99,4.7884562]
[1758177979030,0.06,244.02,244.0,0.69]
[1758177979406,0.06,244.02,244.01,0.69]
[1758177980022,0.06,244.02,244.01,0.97432314]
[1758177980536,0.06,244.02,244.01,5.07251583]
[1758177985318,0.06,244.02,244.01,26.0]
[1758177989143,26.0,243.99,243.98,55.17972006]
[1758177989310,29.4747999,243.99,243.98,55.17972006]
[1758177989511,1.49239995,243.99,243.98,55.17972006]
[1758177989734,0.06,244.02,243.98,59.96831733]
[1758177989939,0.06,244.02,243.99,0.69]
[1758177990535,0.06,244.02,244.0,0.69]
[1758177991135,0.06,244.02,244.0,4.78819697]
[1758177991718,0.06,244.02,244.0,0.69]
[1758177991932,0.55,244.02,243.98,55.17972006]
[1758177992135,0.06,244.02,243.98,55.17972006]
[1758177992340,0.06,244.02,243.98,55.88972006]
[1758177992723,1.55239995,244.02,243.98,55.17972006]
[1758177992928,0.49,244.01,243.98,55.17972006]
[1758177994050,1.55239995,244.02,243.98,55.17972006]
[1758177994240,2.04239995,244.02,243.98,55.17972006]
[1758177994950,0.06,244.02,243.98,55.17972006]
[1758177995247,1.55239995,244.02,243.98,55.17972006]
[1758177995454,0.06,244.02,243.99,0.71]
[1758177996428,0.06,244.02,243.98,59.27834171]
[1758177996756,0.06,244.02,243.99,0.71]
[1758177997128,0.06,244.02,244.0,0.71]
[1758177997442,0.06,244.02,244.0,4.80828055]
[1758177998637,0.06,244.02,244.0,4.09828055]
[1758177998825,0.06,244.02,244.01,0.71]
[1758178001549,0.06,244.02,244.0,4.09832648]
[1758178002273,0.06,244.02,243.99,0.71]
[1758178003872,0.06,244.02,243.99,4.80846912]
[1758178004376,0.06,244.02,243.99,4.09846912]
[1758178004663,0.06,244.02,243.99,4.80846912]
[1758178006454,0.06,244.02,244.0,0.71]
[1758178008046,0.06,244.02,243.99,4.09846912]
[1758178008353,0.06,244.02,243.98,55.17972006]
[1758178008554,0.06,244.02,243.99,0.71]
[1758178008761,0.06,244.02,243.98,55.88972006]
[1758178008938,0.06,244.02,243.99,0.71]
[1758178009359,1.55239995,244.02,243.99,0.71]
[1758178009857,1.55239995,244.02,244.0,0.71]
[1758178010282,0.06,244.02,244.0,0.71]
[1758178010648,0.06,244.02,244.01,0.71]
[1758178013067,1.55239995,244.02,243.98,55.17972006]
[1758178013264,1.49239995,244.0,243.98,55.17972006]
[1758178013655,1.49239995,244.01,243.98,55.17972006]
[1758178014053,0.55,244.02,243.98,55.17972006]
[1758178014054,4.15805466,244.02,243.98,55.17972006]
[1758178014253,1.49239995,244.0,243.98,55.88972006]
[1758178014457,0.06,244.02,243.99,0.71]
[1758178014663,1.49239995,244.01,243.99,0.71]
[1758178015364,0.06,244.02,243.98,55.17972006]
[1758178015365,1.49239995,244.0,243.98,55.17972006]
[1758178015567,1.49239995,243.99,243.98,55.17972006]
[1758178016652,3.4747999,243.99,243.98,55.17972006]
[1758178017361,1.49239995,243.99,243.98,55.17972006]
[1758178018459,3.4747999,243.99,243.98,55.17972006]
[1758178022858,2.9847999,243.99,243.98,55.17972006]
[1758178026557,2.9847999,243.99,243.98,55.84972006]
[1758178026558,1.49239995,243.99,243.98,55.84972006]
[1758178030881,1.49239995,243.99,243.98,55.17972006]
[1758178032464,1.49239995,243.99,243.98,55.84972006]
[1758178032677,1.49239995,243.99,243.98,55.17972006]
[1758178033498,0.06,244.02,243.98,55.84972006]
[1758178033790,1.49239995,244.0,243.99,0.67]
[1758178035156,0.06,244.02,243.99,0.67]
[1758178035362,1.49239995,244.0,243.99,0.67]
[1758178036564,0.06,244.02,243.99,0.67]
[1758178036868,1.49239995,244.0,243.99,0.67]
[1758178037964,1.55239995,244.0,243.99,0.67]
[1758178038692,0.06,244.0,243.99,0.67]
[1758178038905,1.55239995,244.0,243.99,0.67]
[1758178043395,0.06,244.0,243.98,55.20972006]
[1758178043594,2.9847999,243.99,243.98,55.20972006]
[1758178043982,3.4747999,243.99,243.98,55.20972006]
[1758178044280,2.9847999,243.99,243.98,55.20972006]
[1758178046198,1.49239995,243.99,243.98,55.20972006]
[1758178046599,1.49239995,243.99,243.98,55.87972006]
[1758178046984,1.49239995,243.99,243.98,55.20972006]
[1758178048593,1.98239995,243.99,243.98,55.20972006]
[1758178048892,1.49239995,243.99,243.98,55.20972006]
[1758178049073,2.9847999,243.99,243.98,55.20972006]
[1758178049888,4.66737044,243.99,243.98,55.20972006]
[1758178053715,2.33368522,243.99,243.98,55.20972006]
[1758178053890,0.06,244.0,243.98,55.92972006]
[1758178054088,0.06,244.0,243.98,55.20972006]
[1758178054089,2.33368522,243.99,243.98,55.20972006]
[1758178054589,0.06,244.0,243.98,55.92972006]
[1758178054790,0.06,244.0,243.99,0.72]
[1758178054995,0.06,244.02,243.99,0.72]
[1758178056007,0.06,244.02,244.0,4.09836065]
[1758178056526,0.06,244.02,244.01,0.72]
[1758178061191,0.06,244.02,244.01,26.72]
[1758178069019,0.06,244.02,243.98,60.94815695]
[1758178069221,0.06,244.02,244.0,0.72]
[1758178070621,0.06,244.02,243.98,59.30838502]
[1758178070920,2.39368522,244.02,243.98,55.20972006]
[1758178071110,2.33368522,244.01,243.98,55.20972006]
[1758178071419,2.39368522,244.02,243.98,55.92972006]
[1758178073203,2.33368522,244.01,243.98,55.20972006]
[1758178073410,2.33368522,244.0,243.98,55.20972006]
[1758178073906,2.33368522,243.99,243.98,55.20972006]
[1758178074800,2.88368522,243.99,243.98,55.20972006]
[1758178075303,9.31589906,243.99,243.98,55.20972006]
[1758178076719,2.33368522,243.99,243.98,55.92972006]
[1758178078529,4.0983386,244.01,243.98,55.92972006]
[1758178078728,2.33368522,243.99,243.98,55.92972006]
[1758178079053,10.30416471,244.05,243.98,55.92972006]
[1758178079054,0.1,244.09,244.02,39.87991715]
[1758178079241,0.1,244.09,244.06,26.0]
[1758178079412,0.1,244.09,244.08,0.28432314]
[1758178079611,0.1,244.09,244.08,3.0190755]
[1758178080420,0.1,244.09,244.08,3.1490755]
[1758178080625,0.1,244.09,244.08,0.13]
[1758178080823,0.1,244.09,244.07,4.09702831]
[1758178081025,0.1,244.09,244.07,4.22702831]
[1758178081205,0.1,244.09,244.08,0.13]
[1758178083225,0.1,244.09,244.07,4.09702831]
[1758178083431,0.1,244.09,244.07,4.22702831]
[1758178085828,0.1,244.09,244.07,4.09702831]
[1758178086137,0.76,244.09,244.06,0.28432314]
[1758178086321,0.1,244.09,244.06,0.28432314]
[1758178087924,0.1,244.09,244.06,0.41432314]
[1758178088440,0.1,244.09,244.06,4.38160887]
[1758178092159,0.1,244.09,244.06,4.41160887]
[1758178092454,0.66,244.08,243.98,59.30835234]
[1758178092627,2.33368522,244.04,244.03,0.03]
[1758178093040,2.99368522,244.04,244.03,0.03]
[1758178096952,0.66,244.04,244.03,0.03]
[1758178097128,2.99368522,244.04,244.03,0.03]
[1758178097744,0.66,244.04,244.03,0.03]
[1758178097952,2.99368522,244.04,244.03,0.03]
[1758178099628,0.66,244.04,244.03,0.03]
[1758178099831,2.99368522,244.04,244.03,0.03]
[1758178100261,0.66,244.04,244.03,0.03]
[1758178100438,2.99368522,244.04,244.03,0.03]
[1758178109137,0.66,244.07,244.03,0.03]
[1758178109438,2.33368522,244.05,244.03,0.03]
[1758178109949,1.49224541,244.04,244.03,0.03]
[1758178111652,2.15224541,244.04,244.03,0.03]
[1758178113563,0.66,244.04,244.03,0.03]
[1758178113870,2.15224541,244.04,244.03,0.03]
[1758178117048,3.92881396,244.04,244.03,0.03]
[1758178117257,23.92881396,244.04,244.03,0.03]
[1758178117541,42.0011442,244.04,244.03,0.03]
[1758178119078,42.0011442,244.04,244.01,0.03]
[1758178119079,39.87991715,244.01,244.0,0.03]
[1758178119369,15.37216256,244.01,244.0,0.03]
[1758178119575,41.37216256,244.01,244.0,0.03]
[1758178119749,16.08216256,244.01,244.0,0.03]
[1758178121074,20.18035525,244.01,244.0,0.03]
[1758178123068,26.14933689,244.01,244.0,0.03]
[1758178130776,26.20933689,244.01,244.0,0.03]
[1758178135390,45.47069118,243.99,243.98,33.6571512]
[1758178135589,52.14967282,243.99,243.98,33.6571512]
[1758178136175,4.38285176,243.99,243.98,9.42648165]
[1758178136372,37.84407881,243.99,243.98,9.42648165]
[1758178137874,31.59077403,243.99,243.98,9.42648165]
[1758178140816,33.08301944,243.99,243.98,9.42648165]
[1758178142104,30.09852862,243.99,243.98,9.42648165]
[1758178142303,4.1583216,244.01,243.98,9.42648165]
[1758178142491,4.1583216,244.01,243.98,9.58648165]
[1758178142492,1.49224541,244.0,243.98,9.58648165]
[1758178142691,1.49224541,244.0,243.99,0.16]
[1758178142906,1.55224541,244.01,243.99,0.16]
[1758178143114,0.06,244.01,243.99,0.16]
[1758178144296,0.06,244.01,244.0,26.0]
[1758178144495,0.06,244.01,244.0,26.16]
[1758178145512,0.06,244.01,244.0,30.25836065]
[1758178146092,0.06,244.01,244.0,4.25836065]
[1758178150103,0.06,244.01,244.0,30.25836065]
[1758178150616,0.06,244.01,244.0,44.54811386]
[1758178151212,0.06,244.04,244.03,26.0]
[1758178151714,0.06,244.04,244.03,26.16]
[1758178153012,0.06,244.04,244.03,30.25785682]
[1758178156927,0.06,244.04,244.03,30.09785682]
[1758178158227,0.06,244.04,244.03,26.0]
[1758178159607,0.73,244.04,244.03,26.0]
[1758178160512,0.73,244.04,243.97,24.00271839]
[1758178160513,0.73,244.04,244.01,4.09815132]
[1758178160718,0.73,244.04,244.01,30.09815132]
[1758178162502,0.73,244.04,244.01,4.09815132]
[1758178163205,0.06,244.04,244.01,4.09815132]
[1758178166138,0.06,244.04,244.01,4.25815132]
[1758178166441,0.06,244.04,244.02,26.0]
[1758178166636,0.06,244.04,244.02,26.16]
[1758178167931,0.06,244.04,244.03,18.54755965]
[1758178168249,0.06,244.04,244.03,18.13777397]
[1758178168741,0.06,244.04,244.03,17.97777397]
[1758178169047,0.06,244.04,244.03,4.09785682]
[1758178171050,0.06,244.04,244.03,30.09785682]
[1758178173138,0.06,244.04,244.03,30.25785682]
[1758178173337,0.06,244.04,244.03,30.09785682]
[1758178177054,0.74,244.04,244.03,30.09785682]
[1758178177234,0.06,244.04,244.03,30.09785682]
[1758178185141,0.74,244.04,244.03,30.09785682]
[1758178185662,0.06,244.04,244.03,30.09785682]
[1758178197671,0.74,244.04,244.03,30.09785682]
[1758178205174,0.74,244.04,244.01,0.03]
[1758178206369,2.33074255,244.03,244.01,0.03]
[1758178206784,0.7,244.02,244.01,0.03]
[1758178208489,0.06,244.04,244.01,0.03]
[1758178209573,0.06,244.04,244.03,30.09785682]
[1758178215297,0.76,244.04,244.03,30.09785682]
[1758178216098,0.76,244.04,244.03,26.0]
[1758178216313,0.76,244.04,244.01,80.83]
[1758178216595,0.7,244.03,244.01,84.92813753]
[1758178216785,0.7,244.02,244.01,84.92813753]
[1758178221378,0.7,244.02,244.01,30.12813753]
[1758178225406,0.7,244.02,244.01,26.03]
[1758178225588,0.7,244.02,244.01,0.03]
[1758178228712,3.03074255,244.02,244.01,0.03]
[1758178231796,2.19292961,244.02,244.01,0.03]
[1758178231996,3.83324865,244.02,244.01,0.03]
[1758178233608,3.89324865,244.02,244.01,0.03]
[1758178234098,0.76,244.02,244.01,0.03]
[1758178236414,0.06,244.02,244.01,0.03]
[1758178238611,0.74,244.02,244.01,0.03]
[1758178244313,0.06,244.02,244.01,0.03]
[1758178244702,0.74,244.02,244.01,0.03]
[1758178249418,0.06,244.02,244.01,0.03]
[1758178249818,0.74,244.02,244.01,0.03]
[1758178253507,0.74,244.02,244.01,0.03]
[1758178272229,2.23292961,244.02,244.01,0.03]
[1758178284166,3.87331592,244.02,244.01,0.03]
[1758178286452,5.36624553,244.02,244.01,0.03]
[1758178286772,29.87331592,244.02,244.01,0.03]
[1758178287652,31.36624553,244.02,244.01,0.03]
[1758178288946,31.65056867,244.02,244.01,0.03]
[1758178289348,26.0,243.99,243.98,0.03]
[1758178289551,33.74897119,243.99,243.98,0.03]
[1758178289749,34.40897119,243.99,243.98,0.03]
[1758178289957,36.04989585,243.99,243.98,0.03]
[1758178291162,40.14842447,243.99,243.98,0.03]
[1758178293146,53.74401848,243.99,243.98,0.03]
[1758178293857,50.94860805,243.99,243.98,0.03]
[1758178296259,50.94860805,243.99,243.96,1e-08]
[1758178296260,33.87991715,243.98,243.96,1e-08]
[1758178296461,39.87991715,243.96,243.9,0.03]
[1758178296662,18.54915477,243.94,243.9,0.03]
[1758178297168,19.23915477,243.94,243.9,0.03]
[1758178297954,23.33852346,243.94,243.91,0.03]
[1758178298160,35.64848838,243.94,243.91,0.03]
[1758178303268,0.28432314,243.91,243.9,0.03]
[1758178303454,18.54915477,243.91,243.9,0.03]
[1758178303654,19.23915477,243.91,243.9,0.03]
[1758178303856,19.23915477,243.91,243.87,0.03]
[1758178303857,26.28432314,243.88,243.87,0.03]
[1758178304068,28.61894195,243.88,243.87,0.03]
[1758178304253,29.30894195,243.88,243.87,0.03]
[1758178304564,47.83290679,243.88,243.87,0.03]
[1758178305151,51.93328402,243.88,243.87,0.03]
[1758178305350,48.64678081,243.88,243.87,0.03]
[1758178307160,51.97987425,243.88,243.87,0.03]
[1758178307366,48.64678081,243.88,243.87,0.03]
[1758178314674,8.3611868,243.88,243.87,0.03]
[1758178314878,8.07686366,243.88,243.87,0.22]
[1758178315070,8.07686366,243.88,243.87,0.03]